[Event "*** Titled Tuesday Blitz"]
[Site "Chess.com"]
[Date "2018.04.03"]
[Round "5"]
[White "toad"]
[Black "DACF2905"]
[Result "1/2-1/2"]
[WhiteElo "2241"]
[BlackElo "2054"]
[TimeControl "180+2"]
[EndTime "14:07:47 PDT"]
[Termination "Game drawn - insufficient material"]

1. d4 {[%clk 0:03:01.9]} 1... Nf6 {[%clk 0:02:59.4]} 2. c4 {[%clk 0:03:03.2]}
2... e6 {[%clk 0:03:00.3]} 3. g3 {[%clk 0:03:04.4]} 3... c5 {[%clk 0:03:00.3]}
4. d5 {[%clk 0:03:04.6]} 4... exd5 {[%clk 0:03:01.5]} 5. cxd5 {[%clk 0:03:06.5]}
5... d6 {[%clk 0:03:02.7]} 6. Nc3 {[%clk 0:03:07.3]} 6... g6 {[%clk 0:03:03.6]}
7. Bg2 {[%clk 0:03:08]} 7... Bg7 {[%clk 0:03:05.1]} 8. Nf3 {[%clk 0:03:09.2]}
8... O-O {[%clk 0:03:06.5]} 9. O-O {[%clk 0:03:10.3]} 9... a6 {[%clk 0:03:06.9]}
10. a4 {[%clk 0:03:10.9]} 10... Nbd7 {[%clk 0:03:07.5]} 11. Qc2 {[%clk
0:03:10.4]} 11... Rb8 {[%clk 0:03:06]} 12. Bf4 {[%clk 0:03:07.8]} 12... Qe7
{[%clk 0:03:03.7]} 13. a5 {[%clk 0:03:07.3]} 13... Nh5 {[%clk 0:03:03.8]} 14.
Bg5 {[%clk 0:03:05.8]} 14... f6 {[%clk 0:03:02.7]} 15. Bd2 {[%clk 0:03:03.1]}
15... f5 {[%clk 0:03:02.8]} 16. Rfe1 {[%clk 0:02:44]} 16... Nhf6 {[%clk
0:03:01.9]} 17. e4 {[%clk 0:02:22.5]} 17... fxe4 {[%clk 0:02:55.2]} 18. Nxe4
{[%clk 0:02:23.4]} 18... Nxe4 {[%clk 0:02:55.8]} 19. Rxe4 {[%clk 0:02:24.3]}
19... Ne5 {[%clk 0:02:42.3]} 20. Nxe5 {[%clk 0:02:19.7]} 20... Bxe5 {[%clk
0:02:42.2]} 21. Bc3 {[%clk 0:02:20.3]} 21... Bf5 {[%clk 0:02:42.9]} 22. Rae1
{[%clk 0:02:11.6]} 22... Qc7 {[%clk 0:02:22.8]} 23. Bxe5 {[%clk 0:01:55.6]}
23... dxe5 {[%clk 0:02:18.7]} 24. Qc4 {[%clk 0:01:50.9]} 24... Bxe4 {[%clk
0:02:19.1]} 25. d6+ {[%clk 0:01:51.8]} 25... Qf7 {[%clk 0:02:19.9]} 26. Qxe4
{[%clk 0:01:50.6]} 26... Qxf2+ {[%clk 0:02:20.4]} 27. Kh1 {[%clk 0:01:51.4]}
27... Qxb2 {[%clk 0:02:13.8]} 28. Qxe5 {[%clk 0:01:16.5]} 28... Qxe5 {[%clk
0:02:06.1]} 29. Rxe5 {[%clk 0:01:18.4]} 29... Rbd8 {[%clk 0:02:02.6]} 30. Rd5
{[%clk 0:00:26.6]} 30... Rf6 {[%clk 0:01:53.1]} 31. d7 {[%clk 0:00:24.1]} 31...
c4 {[%clk 0:01:48.6]} 32. Bh3 {[%clk 0:00:21.5]} 32... c3 {[%clk 0:01:42.8]} 33.
Rd1 {[%clk 0:00:16.2]} 33... c2 {[%clk 0:01:41.1]} 34. Rc1 {[%clk 0:00:16.8]}
34... Rc6 {[%clk 0:01:42]} 35. Kg2 {[%clk 0:00:16.7]} 35... Kf7 {[%clk
0:01:40.6]} 36. Kf3 {[%clk 0:00:17]} 36... h5 {[%clk 0:01:40.8]} 37. Ke3 {[%clk
0:00:17.7]} 37... g5 {[%clk 0:01:41.7]} 38. Bf5 {[%clk 0:00:17.5]} 38... Kf6
{[%clk 0:01:41.2]} 39. g4 {[%clk 0:00:16.3]} 39... hxg4 {[%clk 0:01:38.1]} 40.
Bxg4 {[%clk 0:00:18.2]} 40... Rc4 {[%clk 0:01:37.1]} 41. h3 {[%clk 0:00:17.9]}
41... Rc5 {[%clk 0:01:24.6]} 42. Kd4 {[%clk 0:00:13.6]} 42... Rxa5 {[%clk
0:01:22.8]} 43. Rxc2 {[%clk 0:00:15]} 43... Ra4+ {[%clk 0:01:23.9]} 44. Ke3
{[%clk 0:00:12.4]} 44... Rxg4 {[%clk 0:01:24.6]} 45. hxg4 {[%clk 0:00:13.3]}
45... Rxd7 {[%clk 0:01:25.6]} 46. Ke4 {[%clk 0:00:09.5]} 46... Ke6 {[%clk
0:01:22.1]} 47. Rh2 {[%clk 0:00:09]} 47... Kf6 {[%clk 0:01:14.9]} 48. Rh6+
{[%clk 0:00:08.6]} 48... Kg7 {[%clk 0:01:15.6]} 49. Rb6 {[%clk 0:00:09.2]} 49...
Rf7 {[%clk 0:01:10.8]} 50. Ke5 {[%clk 0:00:09]} 50... Re7+ {[%clk 0:01:08.2]}
51. Kf5 {[%clk 0:00:09.2]} 51... Rc7 {[%clk 0:01:08.2]} 52. Kxg5 {[%clk
0:00:09.5]} 52... Kf8 {[%clk 0:01:09.3]} 53. Kf5 {[%clk 0:00:09.4]} 53... Rc5+
{[%clk 0:01:07.8]} 54. Kf4 {[%clk 0:00:08.6]} 54... Rc4+ {[%clk 0:01:05.7]} 55.
Kf5 {[%clk 0:00:09.8]} 55... Rc5+ {[%clk 0:01:06.5]} 56. Kf4 {[%clk 0:00:11.1]}
56... Rb5 {[%clk 0:00:54.4]} 57. Rxb5 {[%clk 0:00:07.2]} 57... axb5 {[%clk
0:00:55.5]} 58. Ke5 {[%clk 0:00:08.6]} 58... Kg7 {[%clk 0:00:55.9]} 59. Kd5
{[%clk 0:00:09.3]} 59... b6 {[%clk 0:00:56.4]} 60. Kd4 {[%clk 0:00:10.2]} 60...
Kg6 {[%clk 0:00:51.9]} 61. Kc3 {[%clk 0:00:11.5]} 61... Kg5 {[%clk 0:00:52.4]}
62. Kb4 {[%clk 0:00:13.1]} 62... Kxg4 {[%clk 0:00:53.5]} 63. Kxb5 {[%clk
0:00:15]} 63... Kf5 {[%clk 0:00:54]} 64. Kxb6 {[%clk 0:00:16.9]} 1/2-1/2

[Event "*** Titled Tuesday Blitz"]
[Site "Chess.com"]
[Date "2018.04.03"]
[Round "5"]
[White "nochewycandy"]
[Black "andante"]
[Result "0-1"]
[WhiteElo "2010"]
[BlackElo "2196"]
[TimeControl "180+2"]
[EndTime "14:07:49 PDT"]
[Termination "andante won by checkmate"]

1. c4 {[%clk 0:03:01.9]} 1... e5 {[%clk 0:02:57.7]} 2. g3 {[%clk 0:03:01.9]}
2... Nf6 {[%clk 0:02:57.9]} 3. Bg2 {[%clk 0:03:02]} 3... Nc6 {[%clk 0:02:54]} 4.
Nc3 {[%clk 0:03:02.4]} 4... d6 {[%clk 0:02:51.7]} 5. e4 {[%clk 0:02:59.2]} 5...
Bg4 {[%clk 0:02:48.3]} 6. Nge2 {[%clk 0:02:59.8]} 6... Nd4 {[%clk 0:02:46.5]} 7.
d3 {[%clk 0:02:56.5]} 7... Qd7 {[%clk 0:02:46.2]} 8. h3 {[%clk 0:02:55.2]} 8...
Bf3 {[%clk 0:02:41.5]} 9. O-O {[%clk 0:02:55.1]} 9... h5 {[%clk 0:02:39.9]} 10.
Bg5 {[%clk 0:02:53.6]} 10... Nh7 {[%clk 0:02:35.3]} 11. Be3 {[%clk 0:02:53.6]}
11... Nxe2+ {[%clk 0:01:37.9]} 12. Nxe2 {[%clk 0:02:47]} 12... Bxg2 {[%clk
0:01:38.5]} 13. Kxg2 {[%clk 0:02:48.3]} 13... f5 {[%clk 0:01:37.6]} 14. exf5
{[%clk 0:02:33.9]} 14... Qxf5 {[%clk 0:01:34.7]} 15. d4 {[%clk 0:02:29.3]} 15...
Be7 {[%clk 0:01:27]} 16. d5 {[%clk 0:02:13.6]} 16... Ng5 {[%clk 0:01:15]} 17.
Bxg5 {[%clk 0:02:11.8]} 17... Bxg5 {[%clk 0:01:14.8]} 18. Nc3 {[%clk 0:02:07.9]}
18... h4 {[%clk 0:01:08.5]} 19. Qg4 {[%clk 0:01:58.1]} 19... Qxg4 {[%clk
0:00:50.4]} 20. hxg4 {[%clk 0:02:00]} 20... Kf7 {[%clk 0:00:40]} 21. Ne4 {[%clk
0:01:58]} 21... Kg6 {[%clk 0:00:40.2]} 22. Rh1 {[%clk 0:01:58.6]} 22... Rh7
{[%clk 0:00:34]} 23. f3 {[%clk 0:01:51.5]} 23... Rah8 {[%clk 0:00:34]} 24. Nxg5
{[%clk 0:01:44.4]} 24... Kxg5 {[%clk 0:00:33.7]} 25. gxh4+ {[%clk 0:01:45.2]}
25... Rxh4 {[%clk 0:00:34.1]} 26. Rxh4 {[%clk 0:01:46.9]} 26... Rxh4 {[%clk
0:00:33.4]} 27. Kg3 {[%clk 0:01:48.7]} 27... Rh7 {[%clk 0:00:27.1]} 28. Re1
{[%clk 0:01:36.3]} 28... Kf6 {[%clk 0:00:27]} 29. b4 {[%clk 0:01:31.7]} 29... a6
{[%clk 0:00:26.2]} 30. c5 {[%clk 0:01:31.5]} 30... g5 {[%clk 0:00:22.9]} 31. a4
{[%clk 0:01:27]} 31... b6 {[%clk 0:00:22.3]} 32. cxd6 {[%clk 0:01:22.2]} 32...
cxd6 {[%clk 0:00:22.8]} 33. Rc1 {[%clk 0:01:24.1]} 33... Rb7 {[%clk 0:00:20.6]}
34. Rc6 {[%clk 0:01:24.2]} 34... Ke7 {[%clk 0:00:21.9]} 35. Kf2 {[%clk
0:01:16.3]} 35... Kd7 {[%clk 0:00:23.3]} 36. Ke3 {[%clk 0:01:15.6]} 36... a5
{[%clk 0:00:23.8]} 37. b5 {[%clk 0:01:14.3]} 37... Rb8 {[%clk 0:00:24]} 38. Ke4
{[%clk 0:01:14.3]} 38... Rf8 {[%clk 0:00:24.1]} 39. Rxb6 {[%clk 0:01:15.2]}
39... Rf4+ {[%clk 0:00:25.4]} 40. Ke3 {[%clk 0:01:16.6]} 40... Rxa4 {[%clk
0:00:26.4]} 41. Rb7+ {[%clk 0:01:17.4]} 41... Ke8 {[%clk 0:00:26.4]} 42. b6
{[%clk 0:01:18.7]} 42... Rb4 {[%clk 0:00:27.3]} 43. Kd3 {[%clk 0:01:16]} 43...
a4 {[%clk 0:00:27.1]} 44. Kc3 {[%clk 0:01:16.8]} 44... Rb1 {[%clk 0:00:27.2]}
45. Kc4 {[%clk 0:01:18.3]} 45... a3 {[%clk 0:00:27.8]} 46. Ra7 {[%clk
0:01:19.5]} 46... Rxb6 {[%clk 0:00:27.1]} 47. Rxa3 {[%clk 0:01:20.1]} 47... Rb1
{[%clk 0:00:27.6]} 48. Kd3 {[%clk 0:01:18.4]} 48... Re1 {[%clk 0:00:28.2]} 49.
Kd2 {[%clk 0:01:18.2]} 49... Rb1 {[%clk 0:00:27.7]} 50. Ra7 {[%clk 0:01:16]}
50... Rb5 {[%clk 0:00:27.8]} 51. Ke3 {[%clk 0:01:16.9]} 51... Rxd5 {[%clk
0:00:26.4]} 52. Ke4 {[%clk 0:01:18.2]} 52... Rd4+ {[%clk 0:00:26.3]} 53. Kf5
{[%clk 0:01:19.2]} 53... Rf4+ {[%clk 0:00:27.6]} 54. Kxg5 {[%clk 0:01:20.5]}
54... Rxf3 {[%clk 0:00:28.5]} 55. Kg6 {[%clk 0:01:20.4]} 55... e4 {[%clk
0:00:28]} 56. g5 {[%clk 0:01:21.7]} 56... e3 {[%clk 0:00:28.5]} 57. Kg7 {[%clk
0:01:20.7]} 57... d5 {[%clk 0:00:29.3]} 58. g6 {[%clk 0:01:19.8]} 58... d4
{[%clk 0:00:28]} 59. Kh6 {[%clk 0:01:17.4]} 59... e2 {[%clk 0:00:27.2]} 60. g7
{[%clk 0:01:13.9]} 60... Rh3+ {[%clk 0:00:26.6]} 61. Kg5 {[%clk 0:01:12.1]}
61... Rg3+ {[%clk 0:00:28]} 62. Kf6 {[%clk 0:01:13.4]} 62... e1=Q {[%clk
0:00:24.3]} 63. Ra8+ {[%clk 0:00:59.2]} 63... Kd7 {[%clk 0:00:24.8]} 64. Ra7+
{[%clk 0:00:47.8]} 64... Kd6 {[%clk 0:00:25]} 65. Ra6+ {[%clk 0:00:49.2]} 65...
Kd5 {[%clk 0:00:25.6]} 66. g8=Q+ {[%clk 0:00:48]} 66... Rxg8 {[%clk 0:00:24.7]}
67. Ra5+ {[%clk 0:00:49]} 67... Qxa5 {[%clk 0:00:23.1]} 68. Kf7 {[%clk
0:00:48.6]} 68... Ra8 {[%clk 0:00:20.2]} 69. Kf6 {[%clk 0:00:49.7]} 69... Qb6+
{[%clk 0:00:20.7]} 70. Kf5 {[%clk 0:00:51.2]} 70... Rf8+ {[%clk 0:00:21.4]} 71.
Kg4 {[%clk 0:00:52.6]} 71... Qg6+ {[%clk 0:00:21.9]} 72. Kh4 {[%clk 0:00:54]}
72... Rh8# {[%clk 0:00:23]} 0-1

[Event "*** Titled Tuesday Blitz"]
[Site "Chess.com"]
[Date "2018.04.03"]
[Round "5"]
[White "GMAkobianSTL"]
[Black "SergeiAza"]
[Result "1-0"]
[WhiteElo "2657"]
[BlackElo "2665"]
[TimeControl "180+2"]
[EndTime "14:07:51 PDT"]
[Termination "GMAkobianSTL won on time"]

1. d4 {[%clk 0:02:20.2]} 1... d5 {[%clk 0:03:00.8]} 2. c4 {[%clk 0:02:19.7]}
2... e6 {[%clk 0:03:01.9]} 3. Nc3 {[%clk 0:02:20.3]} 3... Be7 {[%clk 0:03:03]}
4. cxd5 {[%clk 0:02:20.2]} 4... exd5 {[%clk 0:03:03.7]} 5. Bf4 {[%clk
0:02:21.7]} 5... c6 {[%clk 0:03:05]} 6. Qc2 {[%clk 0:02:21.9]} 6... Bd6 {[%clk
0:03:03.5]} 7. Bxd6 {[%clk 0:02:22]} 7... Qxd6 {[%clk 0:03:04]} 8. e3 {[%clk
0:02:23.4]} 8... Ne7 {[%clk 0:02:57.2]} 9. Bd3 {[%clk 0:02:23.9]} 9... b6 {[%clk
0:02:48]} 10. Nge2 {[%clk 0:02:18.8]} 10... Ba6 {[%clk 0:02:46.6]} 11. O-O
{[%clk 0:02:16.9]} 11... Bxd3 {[%clk 0:02:40.8]} 12. Qxd3 {[%clk 0:02:17.5]}
12... O-O {[%clk 0:02:41.7]} 13. f3 {[%clk 0:02:19.1]} 13... Nd7 {[%clk
0:02:40.7]} 14. e4 {[%clk 0:02:19.7]} 14... dxe4 {[%clk 0:02:36.6]} 15. fxe4
{[%clk 0:02:20.4]} 15... c5 {[%clk 0:02:33.4]} 16. Nb5 {[%clk 0:02:20.5]} 16...
Qh6 {[%clk 0:02:25.6]} 17. d5 {[%clk 0:02:16.4]} 17... Ne5 {[%clk 0:02:07.2]}
18. Qg3 {[%clk 0:02:16.1]} 18... N7g6 {[%clk 0:01:59.6]} 19. Rad1 {[%clk
0:02:08.8]} 19... Qh4 {[%clk 0:01:34]} 20. Nd6 {[%clk 0:01:51.6]} 20... Qxg3
{[%clk 0:01:33.5]} 21. Nxg3 {[%clk 0:01:52.2]} 21... Rad8 {[%clk 0:01:32.3]} 22.
Ngf5 {[%clk 0:01:49.6]} 22... Ng4 {[%clk 0:01:21.6]} 23. h3 {[%clk 0:01:36.8]}
23... N4e5 {[%clk 0:01:20.5]} 24. b3 {[%clk 0:01:33.9]} 24... Rd7 {[%clk
0:01:20.6]} 25. a4 {[%clk 0:01:32.8]} 25... Rfd8 {[%clk 0:01:19.5]} 26. Nc4
{[%clk 0:01:33.4]} 26... f6 {[%clk 0:01:16.5]} 27. Rd2 {[%clk 0:01:24.5]} 27...
Nf7 {[%clk 0:01:15.8]} 28. Re2 {[%clk 0:01:13.4]} 28... Kf8 {[%clk 0:01:14]} 29.
g4 {[%clk 0:01:08.7]} 29... h6 {[%clk 0:01:13.3]} 30. Kh2 {[%clk 0:01:07.7]}
30... Nge5 {[%clk 0:01:13.3]} 31. Kg3 {[%clk 0:01:01.1]} 31... Rb8 {[%clk
0:01:07.7]} 32. h4 {[%clk 0:00:53.7]} 32... a6 {[%clk 0:00:58.1]} 33. Nxe5
{[%clk 0:00:53.1]} 33... Nxe5 {[%clk 0:00:59.3]} 34. g5 {[%clk 0:00:53.1]} 34...
hxg5 {[%clk 0:00:57.1]} 35. hxg5 {[%clk 0:00:53.9]} 35... b5 {[%clk 0:00:58.6]}
36. axb5 {[%clk 0:00:49.4]} 36... Rxb5 {[%clk 0:00:58]} 37. Re3 {[%clk
0:00:40.2]} 37... Rdb7 {[%clk 0:00:41.7]} 38. gxf6 {[%clk 0:00:40.4]} 38... gxf6
{[%clk 0:00:41.8]} 39. Nd6 {[%clk 0:00:41.3]} 39... Rxb3 {[%clk 0:00:41.9]} 40.
Rxf6+ {[%clk 0:00:40.8]} 40... Ke7 {[%clk 0:00:32.5]} 41. Re6+ {[%clk
0:00:36.9]} 41... Kd7 {[%clk 0:00:33.8]} 42. Nxb7 {[%clk 0:00:35.8]} 42... Rxe3+
{[%clk 0:00:29.1]} 43. Kf4 {[%clk 0:00:36.9]} 43... Nc4 {[%clk 0:00:24.6]} 44.
Nxc5+ {[%clk 0:00:32.5]} 44... Kd8 {[%clk 0:00:25.5]} 45. d6 {[%clk 0:00:32.4]}
45... Re1 {[%clk 0:00:25.3]} 46. d7 {[%clk 0:00:31.9]} 46... Rf1+ {[%clk
0:00:21.3]} 47. Kg5 {[%clk 0:00:32]} 47... Rf8 {[%clk 0:00:18.3]} 48. Rxa6
{[%clk 0:00:31.4]} 48... Ke7 {[%clk 0:00:18.4]} 49. Re6+ {[%clk 0:00:25]} 49...
Kd8 {[%clk 0:00:18.7]} 50. e5 {[%clk 0:00:23.5]} 50... Ne3 {[%clk 0:00:11]} 51.
Rc6 {[%clk 0:00:19.4]} 51... Ke7 {[%clk 0:00:08.6]} 52. Re6+ {[%clk 0:00:14.6]}
52... Kd8 {[%clk 0:00:09.3]} 53. Rd6 {[%clk 0:00:16.1]} 53... Rg8+ {[%clk
0:00:07.6]} 54. Kf4 {[%clk 0:00:16.1]} 54... Ng2+ {[%clk 0:00:07.6]} 55. Ke4
{[%clk 0:00:17.1]} 55... Ke7 {[%clk 0:00:08.1]} 56. Nb7 {[%clk 0:00:15.8]} 56...
Rg4+ {[%clk 0:00:02.4]} 57. Kf3 {[%clk 0:00:15.9]} 1-0

[Event "*** Titled Tuesday Blitz"]
[Site "Chess.com"]
[Date "2018.04.03"]
[Round "5"]
[White "Manukyan_Artak"]
[Black "XDPS"]
[Result "0-1"]
[WhiteElo "2394"]
[BlackElo "2578"]
[TimeControl "180+2"]
[EndTime "14:08:04 PDT"]
[Termination "XDPS won by resignation"]

1. e4 {[%clk 0:03:01.9]} 1... c5 {[%clk 0:03:00.3]} 2. Nf3 {[%clk 0:03:02.7]}
2... e6 {[%clk 0:03:01.7]} 3. c3 {[%clk 0:03:03.6]} 3... d5 {[%clk 0:03:01.2]}
4. e5 {[%clk 0:03:04.6]} 4... Nc6 {[%clk 0:03:01.7]} 5. d4 {[%clk 0:03:05.8]}
5... Qb6 {[%clk 0:03:03.1]} 6. a3 {[%clk 0:03:06.6]} 6... Nh6 {[%clk 0:03:03.3]}
7. b4 {[%clk 0:03:07.1]} 7... cxd4 {[%clk 0:03:04.3]} 8. cxd4 {[%clk 0:03:09]}
8... Nf5 {[%clk 0:03:05.1]} 9. Bb2 {[%clk 0:03:08.9]} 9... Bd7 {[%clk
0:02:58.1]} 10. g4 {[%clk 0:03:03.5]} 10... Nfe7 {[%clk 0:02:56]} 11. Nc3 {[%clk
0:03:03.9]} 11... h5 {[%clk 0:02:51.4]} 12. Na4 {[%clk 0:02:55.9]} 12... Qd8
{[%clk 0:02:51.7]} 13. g5 {[%clk 0:02:53.2]} 13... h4 {[%clk 0:02:50.2]} 14. Nc5
{[%clk 0:02:40]} 14... Bc8 {[%clk 0:02:50.2]} 15. Bd3 {[%clk 0:02:35.7]} 15...
g6 {[%clk 0:02:49.6]} 16. Rc1 {[%clk 0:02:29.5]} 16... b6 {[%clk 0:02:48.9]} 17.
Nb3 {[%clk 0:02:19.2]} 17... Bd7 {[%clk 0:02:44.1]} 18. b5 {[%clk 0:02:14.9]}
18... Nb8 {[%clk 0:02:43]} 19. a4 {[%clk 0:02:14.8]} 19... Nf5 {[%clk
0:02:38.4]} 20. O-O {[%clk 0:02:05]} 20... Be7 {[%clk 0:02:35]} 21. Qd2 {[%clk
0:02:05.3]} 21... Rh5 {[%clk 0:02:34.5]} 22. Kh1 {[%clk 0:01:55.3]} 22... a6
{[%clk 0:02:21]} 23. Rg1 {[%clk 0:01:41.7]} 23... axb5 {[%clk 0:02:20.3]} 24.
axb5 {[%clk 0:01:41.5]} 24... Ra2 {[%clk 0:02:21.1]} 25. Ra1 {[%clk 0:01:36.5]}
25... Rxa1 {[%clk 0:02:16.8]} 26. Nxa1 {[%clk 0:01:35.3]} 26... Kf8 {[%clk
0:02:15.8]} 27. Nc2 {[%clk 0:01:35.6]} 27... Kg7 {[%clk 0:02:13.1]} 28. Qf4
{[%clk 0:01:35]} 28... h3 {[%clk 0:02:10.7]} 29. Ne3 {[%clk 0:01:32.7]} 29...
Bc8 {[%clk 0:02:04.6]} 30. Nxf5+ {[%clk 0:01:24.5]} 30... exf5 {[%clk
0:02:04.1]} 31. Qc1 {[%clk 0:01:15.9]} 31... Be6 {[%clk 0:02:03.8]} 32. Ba3
{[%clk 0:01:16.7]} 32... Nd7 {[%clk 0:02:00.9]} 33. Bxe7 {[%clk 0:01:16.4]}
33... Qxe7 {[%clk 0:02:02.8]} 34. Qc3 {[%clk 0:01:07.2]} 34... Rh8 {[%clk
0:02:02.3]} 35. Ra1 {[%clk 0:01:04.5]} 35... Nb8 {[%clk 0:01:48.7]} 36. Qa3
{[%clk 0:00:47.9]} 36... Qxa3 {[%clk 0:01:34.3]} 37. Rxa3 {[%clk 0:00:48.6]}
37... Rc8 {[%clk 0:01:36.2]} 38. Ra1 {[%clk 0:00:45.9]} 38... Rc3 {[%clk
0:01:35.9]} 39. Rd1 {[%clk 0:00:45.1]} 39... Rb3 {[%clk 0:01:24.6]} 40. Ne1
{[%clk 0:00:37.5]} 40... f4 {[%clk 0:01:23.3]} 41. Rb1 {[%clk 0:00:34.9]} 41...
Rc3 {[%clk 0:01:17.2]} 42. Kg1 {[%clk 0:00:35.5]} 42... Nd7 {[%clk 0:01:13]} 43.
f3 {[%clk 0:00:34.1]} 43... Nf8 {[%clk 0:01:14.1]} 44. Kf2 {[%clk 0:00:35.1]}
44... Nh7 {[%clk 0:01:15.6]} 45. Ke2 {[%clk 0:00:36.4]} 45... Nxg5 {[%clk
0:01:16.7]} 46. Kd2 {[%clk 0:00:37.9]} 46... Ra3 {[%clk 0:01:17.6]} 47. Rc1
{[%clk 0:00:37.7]} 47... Ra2+ {[%clk 0:01:15.4]} 48. Rc2 {[%clk 0:00:39]} 48...
Rxc2+ {[%clk 0:01:15.3]} 49. Bxc2 {[%clk 0:00:40.3]} 49... f6 {[%clk 0:01:16.7]}
50. Kc3 {[%clk 0:00:38.1]} 50... Nf7 {[%clk 0:01:11.9]} 51. Nd3 {[%clk
0:00:33.5]} 51... g5 {[%clk 0:01:12.6]} 52. Bd1 {[%clk 0:00:30.5]} 52... fxe5
{[%clk 0:01:05.5]} 53. dxe5 {[%clk 0:00:29.4]} 53... Bf5 {[%clk 0:01:06.8]} 54.
Nb4 {[%clk 0:00:30.5]} 54... Nxe5 {[%clk 0:01:07.4]} 55. Nxd5 {[%clk 0:00:31.6]}
55... Nd7 {[%clk 0:01:02.1]} 56. Kd4 {[%clk 0:00:29.4]} 56... Be6 {[%clk
0:01:00.1]} 57. Nc7 {[%clk 0:00:25.7]} 57... Bf7 {[%clk 0:00:51.8]} 58. Be2
{[%clk 0:00:24.3]} 58... Kf6 {[%clk 0:00:51.9]} 59. Bf1 {[%clk 0:00:25.3]} 59...
Ne5 {[%clk 0:00:49.5]} 60. Be2 {[%clk 0:00:26]} 60... Bh5 {[%clk 0:00:47.4]} 61.
Nd5+ {[%clk 0:00:27.2]} 61... Ke6 {[%clk 0:00:47.8]} 62. Nxb6 {[%clk 0:00:24.1]}
62... Bxf3 {[%clk 0:00:47.6]} 63. Bf1 {[%clk 0:00:21.5]} 63... g4 {[%clk
0:00:47.8]} 64. Nc4 {[%clk 0:00:20.8]} 64... Nxc4 {[%clk 0:00:48.4]} 65. Bxc4+
{[%clk 0:00:20.8]} 65... Kd6 {[%clk 0:00:49.7]} 66. Bf1 {[%clk 0:00:21.8]} 66...
Bg2 {[%clk 0:00:50.8]} 67. Be2 {[%clk 0:00:22.9]} 67... g3 {[%clk 0:00:52]} 68.
hxg3 {[%clk 0:00:23.8]} 68... fxg3 {[%clk 0:00:53.6]} 69. b6 {[%clk 0:00:23.6]}
69... h2 {[%clk 0:00:54.7]} 70. Bf1 {[%clk 0:00:24]} 70... Bxf1 {[%clk
0:00:54.9]} 71. b7 {[%clk 0:00:24.8]} 71... Kc7 {[%clk 0:00:56.1]} 0-1

[Event "*** Titled Tuesday Blitz"]
[Site "Chess.com"]
[Date "2018.04.03"]
[Round "5"]
[White "mishanick"]
[Black "DrZeiss"]
[Result "1/2-1/2"]
[WhiteElo "2822"]
[BlackElo "2228"]
[TimeControl "180+2"]
[EndTime "14:08:06 PDT"]
[Termination "Game drawn by repetition"]

1. e4 {[%clk 0:02:36.7]} 1... c5 {[%clk 0:03:00.5]} 2. Nf3 {[%clk 0:02:37.7]}
2... Nc6 {[%clk 0:03:01.5]} 3. d4 {[%clk 0:02:38.9]} 3... cxd4 {[%clk
0:03:02.6]} 4. Nxd4 {[%clk 0:02:40.8]} 4... e5 {[%clk 0:03:03.7]} 5. Nb5 {[%clk
0:02:41.6]} 5... a6 {[%clk 0:03:04.7]} 6. Nd6+ {[%clk 0:02:42.6]} 6... Bxd6
{[%clk 0:03:05.9]} 7. Qxd6 {[%clk 0:02:44.3]} 7... Qf6 {[%clk 0:03:07.5]} 8. Qd1
{[%clk 0:02:43.3]} 8... Qg6 {[%clk 0:03:08]} 9. Nc3 {[%clk 0:02:44.1]} 9... d5
{[%clk 0:03:09]} 10. Nxd5 {[%clk 0:02:31.5]} 10... Qxe4+ {[%clk 0:03:08.9]} 11.
Ne3 {[%clk 0:02:32.5]} 11... Be6 {[%clk 0:03:00.3]} 12. Bd3 {[%clk 0:02:30.1]}
12... Qb4+ {[%clk 0:02:53]} 13. c3 {[%clk 0:02:30.3]} 13... Qc5 {[%clk
0:02:53.9]} 14. Bf5 {[%clk 0:02:06.1]} 14... Rd8 {[%clk 0:02:41.4]} 15. Qg4
{[%clk 0:02:05.9]} 15... Bxf5 {[%clk 0:02:11.1]} 16. Nxf5 {[%clk 0:02:07.8]}
16... g6 {[%clk 0:02:06.5]} 17. Ng3 {[%clk 0:02:08.9]} 17... Qb5 {[%clk
0:01:47.4]} 18. Qe2 {[%clk 0:02:08.4]} 18... Qxe2+ {[%clk 0:01:43.8]} 19. Kxe2
{[%clk 0:02:10.3]} 19... f5 {[%clk 0:01:44.6]} 20. f3 {[%clk 0:02:10.5]} 20...
Nf6 {[%clk 0:01:43.3]} 21. Bg5 {[%clk 0:02:11.1]} 21... Kf7 {[%clk 0:01:44.2]}
22. Rhd1 {[%clk 0:02:10.9]} 22... h6 {[%clk 0:01:40.5]} 23. Rxd8 {[%clk
0:02:10.7]} 23... Nxd8 {[%clk 0:01:39.4]} 24. Bxf6 {[%clk 0:02:07.8]} 24... Kxf6
{[%clk 0:01:39.3]} 25. Nf1 {[%clk 0:02:09.7]} 25... Nc6 {[%clk 0:01:32.6]} 26.
Ne3 {[%clk 0:02:08.2]} 26... Rd8 {[%clk 0:01:32.2]} 27. b4 {[%clk 0:02:06.7]}
27... Ke6 {[%clk 0:01:24.5]} 28. a4 {[%clk 0:02:07]} 28... Ne7 {[%clk 0:01:21]}
29. a5 {[%clk 0:01:43.4]} 29... Nd5 {[%clk 0:01:19.8]} 30. Nxd5 {[%clk
0:01:44.8]} 30... Rxd5 {[%clk 0:01:19.8]} 31. g4 {[%clk 0:01:43.7]} 31... e4
{[%clk 0:00:54.1]} 32. gxf5+ {[%clk 0:01:32.1]} 32... gxf5 {[%clk 0:00:53]} 33.
fxe4 {[%clk 0:01:28]} 33... Re5 {[%clk 0:00:53.6]} 34. Rg1 {[%clk 0:01:25.6]}
34... Rxe4+ {[%clk 0:00:52.4]} 35. Kd3 {[%clk 0:01:26.9]} 35... Kf6 {[%clk
0:00:52.3]} 36. Rg3 {[%clk 0:01:24]} 36... Re7 {[%clk 0:00:47.2]} 37. Rg8 {[%clk
0:01:21.9]} 37... Rd7+ {[%clk 0:00:45.2]} 38. Ke2 {[%clk 0:01:17.5]} 38... Rc7
{[%clk 0:00:44.9]} 39. Kd2 {[%clk 0:01:15]} 39... Rd7+ {[%clk 0:00:45.4]} 40.
Ke3 {[%clk 0:01:14.6]} 40... Rc7 {[%clk 0:00:45.7]} 41. Kd4 {[%clk 0:01:15.9]}
41... Rd7+ {[%clk 0:00:46.1]} 42. Kc5 {[%clk 0:01:05.3]} 42... Rc7+ {[%clk
0:00:46]} 43. Kb6 {[%clk 0:00:54.9]} 43... Rxc3 {[%clk 0:00:40.5]} 44. Rf8+
{[%clk 0:00:55.6]} 44... Kg5 {[%clk 0:00:35.4]} 45. Rg8+ {[%clk 0:00:52.1]}
45... Kf4 {[%clk 0:00:32.8]} 46. Rd8 {[%clk 0:00:33.3]} 46... Rc4 {[%clk
0:00:29.3]} 47. b5 {[%clk 0:00:33.1]} 47... axb5 {[%clk 0:00:29.6]} 48. Kxb7
{[%clk 0:00:33.8]} 48... b4 {[%clk 0:00:21.1]} 49. a6 {[%clk 0:00:34.9]} 49...
b3 {[%clk 0:00:20.9]} 50. Rd1 {[%clk 0:00:20.7]} 50... Rb4+ {[%clk 0:00:20.9]}
51. Kc6 {[%clk 0:00:20.8]} 51... Ra4 {[%clk 0:00:20.1]} 52. Kb5 {[%clk 0:00:20]}
52... Ra2 {[%clk 0:00:20.7]} 53. Rb1 {[%clk 0:00:19.2]} 53... b2 {[%clk
0:00:19.9]} 54. Kb6 {[%clk 0:00:20.8]} 54... Ke3 {[%clk 0:00:19.6]} 55. a7
{[%clk 0:00:22.3]} 55... f4 {[%clk 0:00:19.7]} 56. Kb7 {[%clk 0:00:21]} 56...
Kd2 {[%clk 0:00:17.6]} 57. Rf1 {[%clk 0:00:16]} 57... Rxa7+ {[%clk 0:00:14]} 58.
Kxa7 {[%clk 0:00:16.6]} 58... Kc2 {[%clk 0:00:15.1]} 59. Rf2+ {[%clk 0:00:17.4]}
59... Kc1 {[%clk 0:00:13.8]} 60. Rf1+ {[%clk 0:00:18.2]} 60... Kc2 {[%clk
0:00:14.7]} 61. Rf2+ {[%clk 0:00:19.1]} 61... Kc3 {[%clk 0:00:14]} 62. Rf3+
{[%clk 0:00:19.8]} 62... Kc2 {[%clk 0:00:14.5]} 63. Rf2+ {[%clk 0:00:20.7]}
1/2-1/2